bitfinex-derivatives/quotes_ETHF0:USTF0_20250620
["timestamp","ask_amount","ask_price","bid_price","bid_amount"]
[1750430352787,27.62451,2524.1,2524.0,0.79233]
[1750430352982,26.8322,2524.1,2524.0,0.79233]
[1750430353482,27.6245,2524.1,2524.0,0.79233]
[1750430354186,26.8322,2524.1,2524.0,0.79233]
[1750430354382,29.52512,2524.1,2524.0,0.79233]
[1750430354581,2.17035,2524.3,2524.2,0.79226]
[1750430354783,35.93873,2524.3,2523.9,0.79233]
[1750430355081,35.93873,2524.3,2523.8,0.79237]
[1750430355082,0.79237,2523.9,2523.8,0.79237]
[1750430355384,25.518,2523.9,2523.8,0.79237]
[1750430356786,26.31036,2523.9,2523.8,0.79237]
[1750430357087,25.518,2523.9,2523.8,0.79237]
[1750430357679,0.79232,2524.1,2524.0,0.79233]
[1750430357883,26.30532,2524.1,2524.0,0.79233]
[1750430358287,28.09135753,2524.1,2523.7,1.98106]
[1750430358486,2.01959753,2524.0,2523.7,1.98106]
[1750430358787,1.22725753,2523.9,2523.8,0.79239]
[1750430358980,7.03,2524.1,2524.0,0.79233]
[1750430359182,1.22733539,2524.1,2524.0,0.79233]
[1750430359489,26.73833539,2524.1,2524.0,2.09673]
[1750430360685,27.53062539,2524.1,2524.0,0.79233]
[1750430361091,27.53064539,2524.1,2524.0,0.79233]
[1750430361283,0.79236,2524.0,2523.9,0.79233]
[1750430361485,0.79239,2523.9,2523.8,0.79237]
[1750430361685,2.01972539,2523.9,2523.8,0.79237]
[1750430361985,4.43513539,2523.9,2523.6,0.7405]
[1750430362288,0.79242,2523.7,2523.6,0.79244]
[1750430362490,2.01975539,2523.7,2523.6,0.79244]
[1750430363387,2.01975539,2523.7,2523.3,5.18915]
[1750430363388,0.79249,2523.6,2523.5,0.79246]
[1750430363587,2.01982539,2523.6,2523.5,0.79246]
[1750430364291,1.22733539,2523.6,2523.5,0.79246]
[1750430364689,26.73133539,2523.6,2523.5,0.79246]
[1750430365290,25.504,2523.6,2523.5,0.79246]
[1750430365491,26.73113776,2523.6,2523.5,0.79246]
[1750430365692,25.504,2523.6,2523.5,0.79246]
[1750430366194,3.2078,2524.0,2523.6,1.98109]
[1750430366398,33.75909972,2523.9,2523.8,0.79239]
[1750430366698,26.72609972,2523.9,2523.8,0.79239]
[1750430367084,26.72609972,2523.9,2523.8,2.08259]
[1750430367288,1.22709972,2523.9,2523.8,2.08259]
[1750430367596,25.497,2524.0,2523.9,0.79236]
[1750430367794,25.497,2524.0,2523.9,14.12119702]
[1750430368385,25.497,2524.0,2523.9,10.91339702]
[1750430369095,3.2078,2524.3,2524.2,0.79226]
[1750430369394,29.93355903,2524.3,2524.2,0.79226]
[1750430369793,26.72275903,2524.3,2524.2,0.79226]
[1750430369999,26.72175903,2524.3,2524.2,0.79226]
[1750430370497,27.51403903,2524.3,2524.2,0.79226]
[1750430371796,1.22875903,2524.3,2524.2,10.91329702]
[1750430371988,26.71975903,2524.3,2524.2,0.79226]
[1750430372392,1.22875903,2524.3,2524.2,0.79226]
[1750430372600,26.71775903,2524.3,2524.2,0.79226]
[1750430373999,26.71275903,2524.3,2524.2,0.79226]
[1750430374894,2.02098903,2524.3,2524.2,0.79226]
[1750430375097,27.50498903,2524.3,2524.2,0.79226]
[1750430375495,26.71275903,2524.3,2524.2,0.79226]
[1750430375801,26.71175903,2524.3,2524.2,0.79226]
[1750430376195,1.22875903,2524.3,2524.2,0.79226]
[1750430376391,26.70875903,2524.3,2524.2,0.79226]
[1750430377600,27.50098903,2524.3,2524.2,0.79226]
[1750430377902,0.79228,2524.2,2524.1,0.79226]
[1750430378103,2.02103903,2524.2,2524.1,0.79226]
[1750430378697,0.79234,2524.0,2523.9,0.79232]
[1750430378893,27.49710903,2524.0,2523.9,0.79236]
[1750430379100,0.79238,2523.9,2523.8,0.79237]
[1750430379295,1.22875903,2523.9,2523.8,0.79237]
[1750430379696,33.73275903,2523.9,2523.8,0.79237]
[1750430379896,34.52511903,2523.9,2523.8,0.79237]
[1750430380403,33.73275903,2523.9,2523.8,0.79237]
[1750430380605,34.52511903,2523.9,2523.8,0.79237]
[1750430380805,33.73275903,2523.9,2523.8,0.79237]
[1750430381401,26.69975903,2523.9,2523.8,0.79237]
[1750430383903,26.69475903,2523.9,2523.8,0.79237]
[1750430384508,1.22875903,2523.9,2523.8,0.79237]
[1750430384707,26.69475903,2523.9,2523.8,0.79237]
[1750430386214,27.48711903,2523.9,2523.8,0.79237]
[1750430387106,28.07365903,2523.9,2523.6,1.98111]
[1750430387411,28.07365903,2523.9,2523.7,0.79239]
[1750430387412,2.02226283,2523.8,2523.7,0.79239]
[1750430387812,1.22983283,2523.8,2523.7,0.79239]
[1750430390209,1.29917064,2523.8,2523.7,0.79239]
[1750430391215,1.22983283,2523.8,2523.7,0.79239]
[1750430392313,26.74917064,2523.8,2523.7,0.79239]
[1750430393313,25.51933781,2523.8,2523.7,0.79239]
[1750430393917,25.51933781,2523.8,2523.4,0.7699]
[1750430394113,25.51933781,2523.8,2523.7,0.79242]
[1750430394315,1.29884115,2523.8,2523.7,0.79242]
[1750430394512,26.74484115,2523.8,2523.7,0.79242]
[1750430395712,1.29884115,2523.8,2523.7,0.79242]
[1750430395912,26.74184115,2523.8,2523.7,0.79242]
[1750430396118,1.29884115,2523.8,2523.7,0.79242]
[1750430396308,26.74184115,2523.8,2523.7,0.79242]
[1750430396509,26.74184115,2523.8,2523.7,2.06962]
[1750430397519,26.74184115,2523.8,2523.7,0.79242]
[1750430400215,26.74184115,2523.8,2523.4,0.7699]
[1750430400414,0.79248,2523.5,2523.4,0.79251]
[1750430400712,9.01667457,2523.6,2523.5,0.79245]
[1750430400918,33.6572052,2523.6,2523.5,0.79245]
[1750430401617,1.2292052,2523.6,2523.5,4.00025]
[1750430402022,25.50133781,2523.8,2523.7,0.79242]
[1750430402218,26.72976235,2523.8,2523.7,0.79242]
[1750430403423,1.29776235,2523.8,2523.7,0.79242]
[1750430406020,26.71976235,2523.8,2523.7,0.79242]
[1750430406822,26.71776235,2523.8,2523.7,0.79242]
[1750430407520,1.29776235,2523.8,2523.7,0.79242]
[1750430407721,26.71676235,2523.8,2523.7,0.79242]
[1750430409422,1.29776235,2523.8,2523.7,0.79242]
[1750430410822,27.50215235,2523.8,2523.7,0.79242]
[1750430411024,0.79245,2523.7,2523.6,0.79242]
[1750430411324,2.61732454,2523.7,2523.6,0.79242]
[1750430411527,3.40974454,2523.7,2523.6,0.79242]
[1750430411921,0.79264,2523.1,2523.0,0.79261]
[1750430412120,25.408,2523.1,2523.0,0.79261]
[1750430412421,32.42906454,2523.1,2523.0,0.79264]
[1750430412614,49.35856454,2523.1,2523.0,0.79264]
[1750430413018,48.56592454,2523.1,2522.6,1.9819]
[1750430413221,2.02106454,2523.0,2522.9,0.79267]
[1750430413418,35.80996454,2523.0,2522.9,0.79267]
[1750430414022,0.79271,2522.8,2522.7,0.79272]
[1750430414323,1.22842454,2522.8,2522.5,0.7455]
[1750430414621,26.63142454,2522.7,2522.3,3.2078]
[1750430414821,8.22342454,2522.6,2522.3,3.2078]
[1750430415020,0.79282,2522.5,2522.4,0.79282]
[1750430415220,0.79282,2522.5,2522.2,0.79287]
[1750430415221,0.79287,2522.3,2522.2,0.79287]
[1750430415421,25.402,2522.3,2522.2,0.79287]
[1750430415628,1.22729424,2522.3,2522.2,0.79287]
[1750430416325,2.34929077,2522.9,2522.2,10.12103702]
[1750430416625,2.01862812,2522.8,2522.7,0.79274]
[1750430416825,34.41562812,2522.8,2522.7,0.79274]
[1750430417321,0.79274,2522.7,2522.6,0.79274]
[1750430417520,1.22591812,2522.7,2522.3,0.7493]
[1750430417826,0.79281,2522.5,2522.4,0.7928]
[1750430418120,25.4,2522.5,2522.4,0.7928]
[1750430418928,26.1928,2522.5,2522.4,0.7928]
[1750430419128,27.4905,2522.5,2522.4,0.7928]
[1750430419423,0.79287,2522.3,2522.2,0.79287]
[1750430419724,7.75183,2522.4,2522.3,0.79284]
[1750430420225,8.2567,2522.4,2522.3,0.79284]
[1750430420426,8.2567,2522.4,2522.2,0.79288]
[1750430420623,8.2567,2522.4,2522.3,0.79286]
[1750430420822,0.79287,2522.3,2522.2,0.79287]
[1750430421023,1.3056,2522.3,2522.2,0.79287]
[1750430422322,2.09846,2522.3,2522.2,0.79287]
[1750430422522,1.3056,2522.3,2522.2,0.79287]
[1750430426526,1.3056,2522.3,2522.2,0.79289]
[1750430426924,2.09846,2522.3,2522.2,0.79289]
[1750430427123,1.3056,2522.3,2522.2,0.79289]
[1750430427330,2.09846,2522.3,2522.2,0.79289]
[1750430427933,0.79292,2522.2,2522.1,0.7929]
[1750430428123,7.81e-06,2522.5,2522.1,6.98231]
[1750430428322,7.81e-06,2522.5,2522.4,14.12166702]
[1750430428641,7.81e-06,2522.5,2522.4,19.12166702]
[1750430428925,7.81e-06,2522.5,2522.4,5.34713]
[1750430429332,25.38600781,2522.5,2522.4,5.34713]
[1750430429629,25.38600781,2522.5,2522.2,0.79288]
[1750430429630,45.69686483,2522.5,2522.2,0.79288]
[1750430429933,0.7929,2522.2,2522.1,0.79291]
[1750430430231,46.8965679,2522.2,2520.8,3.2078]
[1750430430429,3.2078,2521.5,2520.5,13.32883702]
[1750430430734,33.13716,2521.4,2521.2,0.79318]
[1750430430923,4.00092,2521.5,2521.0,0.7619]
[1750430431129,6.961,2521.4,2521.3,0.79315]
[1750430431328,32.343,2521.4,2521.0,0.7619]
[1750430431530,13.32883702,2521.2,2520.6,1.3252]
[1750430431830,14.12214702,2520.9,2520.7,0.79335]
[1750430432034,3.27772803,2520.8,2520.5,0.79339]
[1750430432333,13.32883702,2520.6,2520.0,13.2078]
[1750430432527,25.38,2520.5,2520.0,13.2078]
[1750430432833,3.2078,2520.9,2520.8,0.79332]
[1750430433027,28.5878,2520.9,2520.8,0.79333]
[1750430433225,28.5878,2520.9,2520.7,0.79334]
[1750430433433,0.79334,2520.8,2520.6,0.79338]
[1750430433632,0.79341,2520.6,2520.0,10.0]
[1750430433834,1.3236,2520.8,2520.0,10.0]
[1750430434030,3.2078,2520.6,2520.4,0.79345]
[1750430434230,10.12103702,2520.5,2520.0,10.0]
[1750430434434,3.2078,2520.2,2520.0,10.0]
[1750430434931,10.1708,2520.2,2520.1,0.79355]
[1750430435137,35.5548,2520.2,2520.0,10.0]
[1750430435328,35.5548,2520.2,2520.1,0.79355]
[1750430435529,0.79352,2520.2,2520.0,10.79356]
[1750430435730,3.2078,2520.9,2520.1,3.2078]
[1750430436032,3.2078,2520.9,2520.8,0.79333]
[1750430436331,28.5918,2520.9,2520.3,1.98373]
[1750430436527,10.12103702,2520.8,2520.3,1.2701]
[1750430436838,3.2078,2520.9,2520.8,0.79333]
[1750430437137,28.5968,2520.9,2520.8,0.79333]
[1750430438037,28.66613781,2520.9,2520.8,0.79333]
[1750430438239,28.66613781,2520.9,2520.3,1.2701]
[1750430438436,10.12103702,2520.7,2520.6,0.79337]
[1750430438935,4.56583781,2520.9,2520.8,0.79333]
[1750430439134,37.71113781,2520.9,2520.4,1.98365]
[1750430439332,3.2078,2520.6,2520.2,0.7032]
[1750430439534,3.2078,2520.3,2519.7,3.2078]
[1750430439736,34.36471309,2520.2,2519.7,0.7401]
[1750430439929,3.2078,2520.3,2520.2,0.79352]
[1750430440128,33.57115683,2520.3,2519.8,1.3291]
[1750430440429,35.5628,2520.3,2520.2,0.79352]
[1750430440637,0.7936,2520.0,2519.7,0.7401]
[1750430440835,25.39,2519.9,2519.8,0.79365]
[1750430441133,32.355,2519.9,2519.8,0.79365]
[1750430441331,32.355,2519.9,2519.7,0.7401]
[1750430441535,11.29673368,2519.8,2519.4,0.7208]
[1750430441730,4.42525429,2519.7,2519.6,0.79371]
[1750430441935,0.79372,2519.6,2519.5,0.79374]
[1750430442127,35.5618,2519.7,2519.4,1.51455]
[1750430442334,3.2078,2519.7,2519.6,0.79371]
[1750430442533,33.14868,2519.7,2519.6,0.79371]
[1750430442739,33.57171314,2519.7,2519.6,0.79371]
[1750430443040,34.36540314,2519.7,2519.5,0.79372]
[1750430443237,0.79374,2519.5,2519.3,0.79378]
[1750430443437,32.355,2519.7,2519.1,4.5439]
[1750430443740,32.359,2519.6,2519.5,0.79374]
[1750430444139,32.359,2519.6,2519.3,1.98452]
[1750430444336,3.2078,2519.8,2519.7,0.79368]
[1750430444541,6.966,2519.9,2519.8,0.79365]
[1750430444840,33.57376727,2519.9,2519.8,0.79365]
[1750430445539,33.57376727,2519.9,2519.6,0.7937]
[1750430445540,0.79368,2519.7,2519.6,0.7937]
[1750430445735,33.7343,2519.9,2519.6,0.7937]
[1750430445937,12.51218782,2519.8,2519.1,1.98464]
[1750430446139,11.29673368,2519.5,2519.1,0.7037]
[1750430446345,0.79384,2519.2,2519.1,0.7037]
[1750430446543,0.79384,2519.2,2519.1,1.49757]
[1750430446736,0.79384,2519.2,2519.1,0.7037]
[1750430447042,36.3636,2519.4,2519.3,0.7938]
[1750430447645,28.6028,2519.4,2519.3,0.7938]
[1750430447839,25.395,2519.4,2519.3,0.7938]
[1750430448237,0.79382,2519.3,2519.2,0.79382]
[1750430448438,0.79382,2519.3,2518.5,10.1748]
[1750430448439,10.1758,2519.3,2518.7,0.79397]
[1750430448648,11.29673368,2519.1,2518.7,0.79396]
[1750430448851,0.79397,2518.8,2518.7,0.79396]
[1750430449148,0.79397,2518.8,2518.7,0.79397]
[1750430449340,6.968,2518.9,2518.8,0.79396]
[1750430449646,33.58025838,2518.9,2518.8,0.79396]
[1750430449840,34.37410576,2518.9,2518.8,0.79396]
[1750430450037,33.15993,2518.9,2518.8,0.79396]
[1750430450235,32.366,2518.9,2518.8,0.79396]
[1750430450434,33.57959112,2518.9,2518.8,0.79396]
[1750430450745,32.366,2518.9,2518.8,0.79396]
[1750430450947,0.79398,2518.8,2518.5,3.2078]
[1750430451240,0.79398,2518.8,2518.6,0.794]
[1750430451437,0.79398,2518.8,2518.7,0.79399]
[1750430451651,32.366,2518.9,2518.8,0.79396]
[1750430451839,0.79396,2518.8,2518.6,0.794]
[1750430452142,5.19287,2518.7,2517.8,1.9857]
[1750430452334,14.50453368,2518.4,2518.3,0.79412]
[1750430452538,0.79412,2518.3,2518.2,0.79413]
[1750430452738,25.4,2518.3,2518.1,0.79417]
[1750430452940,25.4,2518.3,2518.0,0.79421]
[1750430453134,11.29673368,2518.1,2517.4,1.98595]
[1750430453340,34.35377881,2518.0,2517.8,0.79425]
[1750430453545,0.79431,2517.7,2517.5,1.3486]
[1750430453741,32.348,2517.6,2517.5,0.79435]
[1750430454337,1.98594,2517.5,2516.8,3.2078]
[1750430454542,12.09129368,2516.9,2516.7,0.79461]
[1750430454745,32.455,2516.8,2516.3,1.2974]
[1750430455236,32.455,2516.8,2516.6,0.79463]
[1750430455436,6.949,2516.9,2516.8,0.79458]
[1750430455745,33.67924205,2516.9,2516.8,0.79459]
[1750430456144,45.742,2517.4,2516.8,0.79459]
[1750430456145,3.06237858,2517.6,2516.8,3.2078]
[1750430456446,3.2078,2517.7,2517.4,0.7944]
[1750430456447,33.67970715,2517.5,2517.4,0.7944]
[1750430456649,32.471,2517.5,2517.4,0.7944]
[1750430457244,33.67991769,2517.5,2517.4,0.7944]
[1750430457847,32.471,2517.5,2517.4,0.7944]
[1750430458048,32.471,2517.5,2517.1,0.7281]
[1750430458249,32.471,2517.5,2517.4,0.7944]
[1750430458549,33.68025925,2517.5,2517.4,0.7944]
[1750430458739,0.79443,2517.3,2517.1,0.7281]
[1750430458942,25.505,2517.2,2517.1,0.7945]
[1750430459741,0.79452,2517.1,2516.8,1.2552]
[1750430459938,25.505,2517.2,2517.0,0.79451]
[1750430460144,26.29948,2517.2,2517.1,0.7945]
[1750430460343,26.71607419,2517.2,2516.5,3.9519]
[1750430460549,11.29673368,2516.9,2516.5,0.79467]
[1750430460745,11.29673368,2516.6,2516.3,0.79473]
[1750430461052,33.66607419,2516.5,2516.4,0.79472]
[1750430461351,28.7238,2516.7,2516.6,0.79466]
[1750430461546,29.9340203,2516.7,2516.1,1.2965]
[1750430461744,29.9340203,2516.7,2516.3,0.79473]
[1750430461745,3.2078,2516.4,2516.3,0.79473]
[1750430461939,25.528,2516.4,2516.3,0.79473]
[1750430462144,25.522,2516.4,2516.3,0.79475]
[1750430463646,25.522,2516.4,2515.9,2.73123]
[1750430463647,25.522,2516.4,2515.9,0.7441]
[1750430463947,11.29673368,2516.2,2516.1,0.7948]
[1750430464149,0.795,2515.5,2515.4,0.06933781]
[1750430464451,43.86373368,2515.5,2514.8,1.98807]
[1750430464652,0.7951,2515.2,2515.1,0.79513]
[1750430464949,0.7951,2515.2,2514.2,3.97703]
[1750430464950,1.98783,2515.1,2513.9,5.19652]
[1750430465147,11.29673368,2514.8,2514.2,3.2078]
[1750430465350,29.63307,2514.7,2514.3,1.362]
[1750430465541,11.29673368,2514.5,2513.9,0.6848]
[1750430465742,11.29673368,2514.2,2513.9,0.6848]
[1750430465952,25.63,2514.1,2514.0,0.79548]
[1750430466247,11.29673368,2514.5,2514.0,0.79548]
[1750430466248,3.2078,2514.6,2514.5,0.79532]
[1750430466444,25.634,2514.6,2514.4,0.79535]
[1750430466644,25.634,2514.6,2514.2,1.3503]
[1750430466844,26.4293,2514.6,2514.5,0.79532]
[1750430467046,25.634,2514.6,2514.5,0.79532]
[1750430467549,25.669,2514.7,2514.6,0.79529]
[1750430468149,3.2078,2515.3,2514.6,8.2078]
[1750430468453,28.8638,2515.7,2515.6,0.79497]
[1750430468644,30.10372977,2515.7,2515.6,0.79497]
[1750430468847,28.8918,2515.7,2515.5,0.79499]
[1750430469046,45.785,2515.9,2515.3,1.3503]
[1750430469247,52.742,2515.9,2515.8,0.79491]
[1750430469553,78.435,2515.9,2515.8,0.79491]
[1750430469955,78.435,2515.9,2515.5,1.3085]
[1750430470155,11.29673368,2515.7,2515.2,3.2078]
[1750430470354,48.9928,2515.9,2515.8,0.79491]
[1750430470650,6.957,2516.4,2516.3,0.79475]
[1750430470852,26.93158628,2516.4,2516.3,0.79475]
[1750430471148,37.02073368,2516.4,2515.9,1.3085]
[1750430471352,25.724,2516.4,2516.3,0.79475]
[1750430472759,3.2078,2516.6,2516.5,0.79469]
[1750430473051,1.20900542,2516.6,2516.5,0.79469]
[1750430473253,3.2078,2516.9,2516.8,0.79459]
[1750430473452,4.41758715,2516.9,2516.8,0.79459]
[1750430473652,10.1648,2517.3,2517.2,0.79447]
[1750430473853,37.09875507,2517.3,2516.6,1.3746]
[1750430474048,14.50453368,2517.0,2516.9,0.79453]
[1750430474250,25.731,2517.0,2516.9,0.79453]
[1750430474453,10.1648,2517.3,2517.2,0.79447]
[1750430474760,37.10947253,2517.3,2516.6,3.36122]
[1750430474955,1.21067253,2517.2,2517.1,0.79448]
[1750430475458,1.21067253,2517.2,2516.8,0.79458]
[1750430475653,11.29673368,2516.9,2516.4,1.2606]
[1750430475859,11.29673368,2516.6,2516.0,3.2078]
[1750430476159,5.50977,2517.1,2517.0,0.79453]
[1750430476355,37.11935709,2517.1,2516.9,0.79454]
[1750430476661,1.21255709,2517.0,2516.9,0.79456]
[1750430477159,33.92555709,2517.0,2516.9,0.79456]
[1750430477353,12.50929077,2517.0,2516.9,0.79456]
[1750430477556,45.20829077,2517.0,2516.4,0.7279]
[1750430477761,43.99573368,2517.0,2516.9,0.79456]
[1750430477955,46.00397165,2517.0,2516.8,0.79457]
[1750430478161,0.79463,2516.7,2516.6,0.79464]
[1750430478460,3.2078,2516.8,2516.7,0.79462]
[1750430478654,1.21481467,2516.8,2516.7,0.79462]
[1750430479653,0.79464,2516.7,2516.6,0.79463]
[1750430479854,1.21481467,2516.7,2516.6,0.79466]
[1750430480762,2.00944467,2516.7,2516.6,0.79466]
[1750430480960,1.21481467,2516.7,2516.6,0.79466]
[1750430481160,36.45778467,2516.7,2516.6,0.79466]
[1750430481359,1.21481467,2516.7,2516.6,15.79466]
[1750430481665,26.98781467,2516.7,2516.6,15.79466]
[1750430482253,29.28978467,2516.7,2516.6,15.79466]
[1750430482456,29.30302062,2516.7,2516.6,15.79466]
[1750430482656,26.98781467,2516.7,2516.6,15.79466]
[1750430482857,3.53038773,2516.7,2516.6,15.79466]
[1750430483059,36.45955676,2516.7,2516.6,15.79466]
[1750430483260,34.14381467,2516.7,2516.6,15.79466]
[1750430483859,3.53238134,2516.7,2516.6,15.79466]
[1750430484064,29.27738134,2516.7,2516.6,15.79466]
[1750430484365,1.21481467,2516.7,2516.6,19.00246]
[1750430484864,4.67e-06,2516.7,2516.6,19.00246]
[1750430485059,1.46099134,2517.0,2516.9,0.79456]
[1750430485263,3.2078,2517.5,2517.4,0.7944]
[1750430485861,25.765,2517.6,2517.5,0.79437]
[1750430486062,3.91548462,2518.1,2517.3,5.19387]
[1750430486063,3.13238769,2518.1,2518.0,0.79421]
[1750430486256,32.09618769,2518.1,2518.0,0.79421]
[1750430486565,25.756,2518.1,2518.0,0.79421]
[1750430487563,26.53718,2518.1,2518.0,0.79421]
[1750430487765,0.79423,2518.0,2517.9,0.79423]
[1750430487964,0.79426,2517.9,2517.8,0.79426]
[1750430488164,28.9508,2518.1,2518.0,0.79421]
[1750430488466,28.9388,2518.1,2518.0,0.79421]
[1750430488772,29.73298,2518.1,2518.0,0.79421]
[1750430489068,28.9388,2518.1,2518.0,0.79421]
[1750430489467,3.2078,2518.1,2518.0,0.79421]
[1750430490261,25.724,2518.2,2518.1,0.79418]
[1750430490461,8.5078,2518.5,2518.4,0.79409]
[1750430490462,7.16,2518.5,2518.4,0.79409]
[1750430490662,7.16,2518.5,2518.1,2.77964]
[1750430490663,3.2078,2518.6,2518.5,0.79406]
[1750430490867,28.9328,2518.6,2518.5,0.79406]
[1750430491164,28.9328,2518.6,2517.9,5.19341]
[1750430491469,28.9328,2518.6,2517.9,6.45911]
[1750430491657,0.79412,2518.3,2518.2,0.79412]
[1750430491856,25.713,2518.3,2518.2,0.79415]
[1750430492361,28.9158,2518.6,2518.5,0.79406]
[1750430492767,0.79408,2518.5,2518.4,0.79409]
[1750430493065,29.70984,2518.6,2518.5,0.79406]
[1750430493265,28.9158,2518.6,2518.4,0.79407]
[1750430493462,28.9158,2518.6,2518.3,0.79411]
[1750430493664,1.98523,2518.4,2517.2,3.2078]
[1750430493963,11.29673368,2517.9,2517.3,3.29416]
[1750430494167,7.158,2518.0,2517.9,0.79423]
[1750430494367,32.903,2518.0,2517.9,0.79424]
[1750430495058,32.903,2518.0,2517.2,3.2078]
[1750430495059,36.1108,2518.0,2517.2,3.2078]
[1750430495264,14.50453368,2517.7,2517.5,0.79436]
[1750430495569,32.897,2517.6,2517.0,1.3081]
[1750430495767,34.2302,2517.6,2517.4,0.79438]
[1750430496062,34.2302,2517.6,2517.0,1.3081]
[1750430496269,14.50453368,2517.4,2517.0,0.79452]
[1750430496472,14.50453368,2517.1,2516.6,15.0]
[1750430496673,0.79462,2516.7,2516.6,15.0]
[1750430496971,25.755,2516.7,2516.6,15.79465]
[1750430497162,10.3658,2517.3,2517.2,0.79447]
[1750430497365,0.79462,2516.8,2516.6,15.0]
[1750430497568,0.7946,2516.8,2516.7,0.79461]
[1750430497768,0.79462,2516.7,2516.6,15.0]
[1750430497970,3.2078,2516.7,2516.6,15.79465]
[1750430498968,3.2078,2516.7,2516.6,15.0]
[1750430499165,4.00242,2516.7,2516.6,15.0]
[1750430499370,3.2078,2516.7,2516.6,15.79465]
[1750430500960,25.773,2516.8,2516.7,0.79462]
[1750430501168,4.5446,2517.3,2517.1,0.7945]
[1750430501471,0.79453,2517.0,2516.9,0.79454]
[1750430501672,33.71349,2517.2,2516.7,1.291]
[1750430501865,0.7945,2517.1,2517.0,0.79451]
[1750430502266,32.919,2517.2,2516.7,1.291]
[1750430502267,44.21573368,2517.2,2516.7,1.291]
[1750430502464,0.79462,2516.8,2516.7,0.79462]
[1750430502668,4.00235,2517.0,2516.9,0.79456]
[1750430502868,12.63353368,2517.2,2516.7,1.3879]
[1750430503073,32.907,2517.1,2516.7,1.3879]
[1750430503272,32.907,2517.1,2517.0,0.79453]
[1750430503674,32.907,2517.1,2516.7,1.3879]
[1750430504179,0.79448,2517.2,2517.1,0.7945]
[1750430504477,7.95348,2517.2,2517.0,0.79451]
[1750430504679,25.727,2517.1,2517.0,0.79453]
[1750430504874,3.2078,2517.3,2516.9,1.98641]
[1750430505075,25.716,2517.2,2517.1,0.79449]
[1750430505773,25.716,2517.2,2516.7,0.6918]
[1750430505975,3.2078,2517.0,2516.9,0.79456]
[1750430506274,0.79457,2516.9,2516.6,18.2078]
[1750430506574,15.29915368,2516.7,2516.6,15.0]
[1750430508280,32.871,2516.7,2516.6,15.79466]
[1750430508675,33.66562,2516.7,2516.6,15.79465]
[1750430509577,48.17015368,2516.7,2516.6,15.0]
[1750430509879,53.17015368,2516.7,2516.6,9.42048184]
[1750430512179,53.17015368,2516.7,2516.6,8.58214184]
[1750430512378,53.17015368,2516.7,2516.6,8.38944085]
[1750430512590,67.97015368,2516.7,2516.6,5.59227378]
[1750430512882,67.97015368,2516.7,2516.6,4.07937378]
[1750430513880,67.97015368,2516.7,2516.6,2.09163416]
[1750430514080,67.97015368,2516.7,2516.6,0.10389454]
[1750430515990,67.87015368,2516.7,2516.6,0.10389454]
[1750430517188,67.84415368,2516.7,2516.6,0.10389454]
[1750430517379,20.29915368,2516.7,2516.6,0.10389454]
[1750430517689,53.04115368,2516.7,2516.6,0.10389454]
[1750430517988,48.04115368,2516.7,2516.6,0.10389454]
[1750430518690,48.02415368,2516.7,2516.6,0.10389454]
[1750430519090,53.02415368,2516.7,2516.6,4.54e-06]
[1750430519289,53.02415368,2516.7,2515.9,0.7004]
[1750430519290,1.98699,2516.2,2515.4,1.36]
[1750430519585,3.2078,2515.8,2515.4,4.04798]
[1750430519790,7.116,2515.8,2515.7,0.79494]
[1750430519988,32.713,2515.8,2515.7,0.79494]
[1750430520483,35.9208,2515.8,2515.4,2.0604]
[1750430520689,15.29953368,2515.5,2515.4,0.7004]
[1750430520890,0.7951,2515.2,2515.1,2.15631]
[1750430521190,28.7998,2515.2,2515.1,0.79511]
[1750430521688,28.7998,2515.2,2515.1,2.15631]
[1750430521884,14.50453368,2515.5,2515.0,1.0]
[1750430522191,0.79513,2515.1,2515.0,1.0]
[1750430522392,26.38513,2515.1,2515.0,1.0]
[1750430522887,32.73773,2515.1,2515.0,1.0]
[1750430523094,33.94058085,2515.1,2515.0,1.0]
[1750430523789,33.94058085,2515.1,2515.0,0.2283]
[1750430523991,0.79538,2514.3,2514.2,0.677]
[1750430524193,48.45633942,2514.3,2513.8,0.79552]
[1750430524496,3.2078,2514.0,2513.9,0.79551]
[1750430524788,28.8388,2514.0,2513.9,0.79551]
[1750430525383,3.2078,2514.0,2513.9,0.79551]
[1750430525588,25.614,2514.0,2513.9,0.79551]
[1750430525893,10.3258,2514.3,2514.2,0.79542]
[1750430526091,35.9388,2514.3,2514.2,0.79542]
[1750430526293,0.79551,2514.0,2513.7,1.2895]
[1750430526489,48.02706368,2513.9,2513.7,1.2895]
[1750430526697,47.23153368,2513.9,2513.8,0.79554]
[1750430526893,35.9498,2513.9,2513.7,2.08505]
[1750430527192,35.9498,2513.9,2512.9,11.09814]
[1750430527193,1.98907,2513.6,2512.4,3.2078]
[1750430527391,11.29673368,2512.9,2512.4,3.2078]
[1750430527690,11.29673368,2512.9,2512.1,1.99019]
[1750430527691,11.29673368,2512.6,2512.1,3.2078]
[1750430527994,3.2078,2512.7,2512.1,3.2078]
[1750430528189,11.29673368,2512.4,2512.1,4.00386]
[1750430528391,14.50453368,2512.4,2512.0,0.7961]
[1750430528691,1.99029,2512.0,2511.5,3.2078]
[1750430528992,11.29673368,2511.8,2511.2,3.2078]
[1750430529193,11.29673368,2511.8,2511.3,3.2078]
[1750430529398,11.29673368,2511.5,2511.3,0.79631]
[1750430529591,33.724,2511.4,2510.9,3.2078]
[1750430529994,26.289,2511.3,2511.2,0.79634]
[1750430530301,38.38588368,2511.9,2511.2,3.2078]
[1750430530492,3.2078,2512.0,2511.4,1.99076]
[1750430530797,3.2078,2512.7,2512.6,0.7959]